[Event "3rd HoliCup Lake City 2019"]
[Site "Udaipur"]
[Date "2019.03.31"]
[Round "7.18"]
[White "Babel, T Divyanshu"]
[Black "Anadkat, Kartavya"]
[Result "0-1"]
[ECO "A15"]
[WhiteElo "1676"]
[BlackElo "1998"]
[Annotator "NA RC"]
[PlyCount "90"]
[EventDate "2019.??.??"]
[EventCountry "IND"]
[SourceTitle "playchess.com"]
[Source "ChessBase"]
[SourceQuality "1"]
[TimeControl "5400+30"]

{[%evp 17,90,-24,-28,-20,-14,-24,-22,-26,-22,-34,-39,-28,-19,-60,-43,-86,-50,-43,-43,-36,-39,-42,-33,-37,-38,-70,-17,-28,-12,-45,-45,-54,-52,-55,-30,-58,-25,-54,-37,-27,-21,-42,-27,-51,-17,-41,-29,-47,-41,-55,-56,-83,-93,-143,-147,-145,-138,-127,-161,-156,-180,-178,-119,-335,-334,-547,-587,-580,-612,-568,-579,-629,-645,-2308,-6325]} 1. c4 {[%emt 0:00:06]} Nf6 {[%emt 0:00:00]} 2. g3 {[%emt 0:00:13]} g6 {[%emt 0:00:00]} 3. Bg2 {[%emt 0:00:33]} Bg7 {[%emt 0:00:00]} 4. Nc3 {[%emt 0:02:52]} O-O {[%emt 0:00:03]} 5. e3 {[%emt 0:04:23]} c6 {[%emt 0:05:23]} 6. Nge2 {[%emt 0:07:21]} d5 {[%emt 0:00:58]} 7. cxd5 {[%emt 0:06:52]} cxd5 {[%emt 0:00:03]} 8. Qb3 {[%emt 0:01:12] A16: English Opening: 1...Nf6 with ...d5} (8. d4 Nc6 9. O-O e6 10. b3 b6 11. Ba3 Re8 12. Rc1 Qd7 13. Nf4 Ba6 14. Re1 Rac8 15. Nd3 Bf8 16. Bb2 Qd8 17. a3 Re7 {½-½ (17) Rakhmanov,A (2653)-Mamedov,N (2588) Izmir 2016}) 8... e6 {[%emt 0:00:05]} 9. O-O {[%emt 0:01:15]} Nc6 {[%emt 0:00:59]} 10. d4 {[%emt 0:01:47]} b6 {[%emt 0:01:27]} 11. Qc2 {[%emt 0:01:39]} Ba6 {[%emt 0:03:56]} 12. Qa4 $146 {[%emt 0:04:02]} ({Predecessor:} 12. b3 Qd6 13. Qd2 {½-½ (13) Quinn,M (2381)-Al Sayed,M (2370) Istanbul 2000}) 12... Bb7 {[%emt 0:01:24]} 13. b4 {[%emt 0:01:33]} Qd7 {[%emt 0:01:11]} 14. Qb3 {[%emt 0:04:56]} Rfc8 {[%emt 0:02:09]} 15. Bb2 {[%emt 0:02:48]} Ne8 {[%emt 0:01:31]} 16. Rfd1 {[%emt 0:05:58]} Nd6 {[%emt 0:04:45]} 17. e4 {[%emt 0:01:54]} Nxe4 {[%emt 0:03:09]} 18. Nxe4 {[%emt 0:03:20]} dxe4 {[%emt 0:00:07]} 19. d5 {[%emt 0:05:58]} exd5 {[%emt 0:00:01]} 20. Bxg7 {[%emt 0:06:04]} Kxg7 {[%emt 0:00:28] [#]} 21. Bxe4 $1 {[%emt 0:10:05]} Ne7 {[%emt 0:01:31]} 22. Nf4 {[%emt 0:02:44]} Rd8 {[%emt 0:02:40]} 23. Rd4 {[%emt 0:06:40]} Nf5 {[%emt 0:09:12]} 24. Bxf5 {[%emt 0:03:06]} Qxf5 {[%emt 0:00:03]} 25. Rad1 {[%emt 0:00:02]} Rd7 {[%emt 0:06:07]} 26. Qa4 {[%emt 0:09:45]} Rd6 {[%emt 0:02:28]} 27. b5 {[%emt 0:01:20]} Qd7 {[%emt 0:01:32]} 28. Qb3 {[%emt 0:01:04]} Rd8 {[%emt 0:03:20]} 29. Ng2 {[%emt 0:02:46]} Re8 {[%emt 0:02:02]} 30. Qb4 {[%emt 0:01:21]} Re5 {[%emt 0:05:49]} 31. Ne3 {[%emt 0:00:43]} Rde6 {[%emt 0:05:12]} 32. a4 {[%emt 0:00:50]} Qe7 {[%emt 0:01:27]} 33. Qc3 {[%emt 0:00:18]} Kg8 {[%emt 0:01:33]} 34. Rc1 {[%emt 0:00:28]} Re4 {[%emt 0:03:06]} 35. Rxe4 {[%emt 0:00:53]} (35. Kf1 $142) 35... Rxe4 {[%emt 0:00:18]} 36. Qc7 {[%emt 0:00:21]} d4 {[%emt 0:00:33]} 37. Qxe7 {[%emt 0:00:33]} Rxe7 {[%emt 0:00:04]} 38. Nf1 {[%emt 0:00:26]} d3 {[%emt 0:00:49]} 39. Rd1 {[%emt 0:00:17]} Rd7 {[%emt 0:00:16]} ({Black should play} 39... Re4 $19 40. Rxd3 Rxa4) 40. Rd2 $2 {[%emt 0:00:23]} (40. Nd2) 40... Bf3 {[%emt 0:00:27]} 41. Ra2 $2 {[%emt 0:00:50]} (41. h3) 41... Rc7 {[%emt 0:01:06]} 42. Rd2 {[%emt 0:00:09]} Rc1 {[%emt 0:00:43]} 43. Rxd3 {[%emt 0:00:21]} Be2 {[%emt 0:00:02] Double Attack} 44. Rd8+ $19 {[%emt 0:00:15]} Kg7 {[%emt 0:00:01]} 45. Rd7 {[%emt 0:00:22]} Bxf1 {[%emt 0:00:14]} 0-1

[Event "3rd HoliCup Lake City 2019"]
[Site "Udaipur"]
[Date "2019.03.31"]
[Round "7.19"]
[White "Himanshu, Ranjan"]
[Black "Garv, Gaur"]
[Result "1/2-1/2"]
[ECO "D56"]
[WhiteElo "1984"]
[BlackElo "1711"]
[Annotator "NA RC"]
[PlyCount "66"]
[EventDate "2019.??.??"]
[EventCountry "IND"]
[SourceTitle "playchess.com"]
[Source "ChessBase"]
[SourceQuality "1"]
[TimeControl "5400+30"]

{[%evp 21,66,8,7,5,29,0,0,0,11,1,14,-6,0,0,0,0,11,-26,-22,0,-14,-28,-8,-20,69,-28,12,5,28,9,21,23,0,0,-21,-63,0,-8,0,-12,12,32767,41,35,85,10,3]} 1. d4 {[%emt 0:00:00]} d5 {[%emt 0:00:10]} 2. c4 {[%emt 0:00:00]} e6 {[%emt 0:00:37]} 3. Nc3 {[%emt 0:00:00]} Nf6 {[%emt 0:00:27]} 4. Bg5 {[%emt 0:00:00]} Be7 {[%emt 0:00:42]} 5. e3 {[%emt 0:00:00]} O-O {[%emt 0:00:14]} 6. Nf3 {[%emt 0:00:00]} h6 {[%emt 0:01:17]} 7. Bh4 {[%emt 0:00:00]} Nbd7 {[%emt 0:00:35]} 8. Rc1 {[%emt 0:01:44]} c6 {[%emt 0:03:31]} 9. Bd3 {[%emt 0:06:58]} dxc4 {[%emt 0:06:47]} 10. Bxc4 {[%emt 0:00:04]} b5 {[%emt 0:02:08]} 11. Bd3 {[%emt 0:06:20]} Bb7 {[%emt 0:01:27]} 12. O-O {[%emt 0:01:56]} a6 {[%emt 0:02:17]} 13. Qe2 {[%emt 0:12:21]} c5 {[%emt 0:13:22]} 14. Bb1 {[%emt 0:05:49] D63: Queen's Gambit Declined: Classical: 7 Rc1} (14. a3 cxd4 15. Nxd4 Nd5 16. Bxe7 Nxe7 17. Rfd1 Qb6 18. b4 Rfd8 19. Nb3 Rac8 20. Qb2 Ne5 21. Nc5 Nxd3 22. Nxd3 {½-½ (55) Nikolaidis,I (2493)-Mastrovasilis,A (2539) Leros 2010}) 14... c4 {[%emt 0:04:21]} 15. e4 {[%emt 0:05:40]} Re8 {[%emt 0:04:26]} 16. e5 {[%emt 0:03:08]} Nd5 {[%emt 0:00:44]} 17. Bxe7 {[%emt 0:00:45]} Qxe7 {[%emt 0:01:32]} 18. Ne4 {[%emt 0:00:28]} Nf8 $146 {[%emt 0:04:57]} ({Predecessor:} 18... f5 19. Nd6 Nf4 20. Qe3 Nd5 21. Qd2 {1-0 (48) Hascher,N (1970)-Djellouli,H (1984) France 2005}) 19. Nd6 {[%emt 0:07:11]} Red8 {[%emt 0:01:18]} 20. g3 {[%emt 0:03:50]} f5 {[%emt 0:07:17]} 21. Ne1 {[%emt 0:10:04]} Bc6 {[%emt 0:04:04]} 22. Ng2 {[%emt 0:05:00]} Be8 {[%emt 0:05:58]} (22... Ng6 $11) 23. f4 {[%emt 0:04:30]} (23. b3 $14) 23... Rab8 {[%emt 0:05:43]} 24. Ne3 {[%emt 0:00:30]} Nxe3 {[%emt 0:04:25]} 25. Qxe3 {[%emt 0:00:02]} Bc6 {[%emt 0:00:19]} 26. Bc2 {[%emt 0:00:28]} Nd7 {[%emt 0:01:29]} 27. Bd1 {[%emt 0:03:30]} Nb6 {[%emt 0:01:02]} 28. Bf3 {[%emt 0:01:16]} ({Better is} 28. b3 $11) 28... Nd5 {[%emt 0:00:51]} (28... Bxf3 $15 29. Qxf3 Nc8) 29. Qd2 {[%emt 0:01:59]} Qa7 {[%emt 0:01:20]} 30. h3 {[%emt 0:01:24]} Qe7 {[%emt 0:01:31]} (30... Ne7 $5 {[%cal Rc6f3]}) 31. Kh2 {[%emt 0:00:09]} Rf8 {[%emt 0:04:48]} 32. Rg1 {[%emt 0:01:08]} Ba8 {[%emt 0:01:58]} 33. Qf2 {[%emt 0:04:01]} Nb4 $11 {[%emt 0:01:41]} 1/2-1/2

[Event "3rd HoliCup Lake City 2019"]
[Site "Udaipur"]
[Date "2019.03.31"]
[Round "7.20"]
[White "Chourasiya, Hemant"]
[Black "Arun, Rathi"]
[Result "0-1"]
[ECO "B00"]
[WhiteElo "1558"]
[BlackElo "1939"]
[Annotator "NA RC"]
[PlyCount "158"]
[EventDate "2019.??.??"]
[EventCountry "IND"]
[SourceTitle "playchess.com"]
[Source "ChessBase"]
[SourceQuality "1"]
[TimeControl "5400+30"]

{[%evp 24,158,14,22,29,35,47,13,35,15,64,33,75,54,72,70,64,20,24,-7,0,-113,-92,-90,-89,-75,-84,-79,-96,-95,-94,-83,-55,-99,-81,-75,-111,-116,-97,-133,-137,-175,-170,-245,-268,-241,-262,-273,-292,-249,-242,-310,-206,-193,-168,-158,32767,32767,-166,-144,-166,-170,-164,-153,-175,-203,-250,-210,-162,-164,-73,-72,-77,-170,-172,-246,-292,-1326,-187,-177,-241,-204,-226,-233,-201,-927,-177,-349,-189,-175,32767,-168,-205,-171,-187,-451,0,-200,0,-158,-208,-188,-93,-47,-73,-57,-73,-27,-70,-103,-73,0,0,-391,0,-958,-1197,-1198,-1201,-1220,-3700,-1403,-1320,-5098,-6660,-8746,-6250,-12782,-5469,-29986,-29987,-29987,-29988,-29988,-29989,-29989,-29990]} 1. e4 {[%emt 0:00:00]} d6 {[%emt 0:00:33]} 2. d4 {[%emt 0:00:17]} g6 {[%emt 0:00:11]} 3. Be3 {[%emt 0:00:20]} Bg7 {[%emt 0:04:18]} 4. Bd3 {[%emt 0:00:50]} Nd7 {[%emt 0:01:37]} (4... Nf6 5. f3 e5 6. c3 Nbd7 7. Ne2 O-O 8. O-O d5 9. Kh1 dxe4 10. fxe4 exd4 11. cxd4 c5 12. Nbc3 cxd4 13. Nxd4 {0-1 (28) Wegener,D (2370)-Graf,A (2585) Gera 2018}) 5. Ne2 {[%emt 0:00:13]} e6 {[%emt 0:05:20]} 6. Qd2 {[%emt 0:00:29] B06: Modern Defence} h6 $146 {[%emt 0:00:47]} ({Predecessor:} 6... Ne7 7. O-O a6 8. c4 b6 9. Nbc3 Bb7 10. Rac1 Rc8 11. f4 f5 12. Ng3 {1-0 (45) Billmann,A (1911)-Neukum,N (1691) Mittelfranken 2007}) 7. Na3 {[%emt 0:00:28]} Ne7 {[%emt 0:00:33]} 8. c3 {[%emt 0:00:34]} b6 {[%emt 0:01:48]} 9. f3 {[%emt 0:00:49]} Bb7 {[%emt 0:00:17]} 10. Ng3 {[%emt 0:01:36]} a6 {[%emt 0:01:57]} 11. f4 {[%emt 0:00:09]} d5 {[%emt 0:02:52]} 12. e5 {[%emt 0:04:37]} h5 {[%emt 0:04:36]} 13. Ne2 {[%emt 0:02:00]} Nf5 {[%emt 0:02:57]} 14. Bf2 {[%emt 0:00:06]} Bf8 {[%emt 0:02:41]} 15. Ng1 {[%emt 0:01:50]} c5 {[%emt 0:02:37]} 16. Nf3 {[%emt 0:00:30]} b5 {[%emt 0:14:56]} 17. Nc2 {[%emt 0:02:51]} (17. Bxf5 $5 gxf5 18. Nc2 $14) 17... Qc7 {[%emt 0:07:37]} 18. Ng5 {[%emt 0:00:49]} Nb6 {[%emt 0:02:12]} 19. dxc5 {[%emt 0:03:51]} Bxc5 {[%emt 0:00:16]} 20. Nd4 {[%emt 0:00:14]} Nc4 {[%emt 0:08:35]} 21. Bxc4 {[%emt 0:01:41]} dxc4 {[%emt 0:00:27]} 22. O-O-O {[%emt 0:05:00]} (22. Nxf5 $11 gxf5 23. Bxc5 Qxc5 24. O-O-O) 22... O-O-O {[%emt 0:02:31]} 23. Qc2 {[%emt 0:01:03]} Bxd4 {[%emt 0:07:18]} 24. Bxd4 {[%emt 0:01:21]} Nxd4 {[%emt 0:03:13]} 25. Rxd4 {[%emt 0:00:11]} Rxd4 {[%emt 0:00:07]} 26. cxd4 {[%emt 0:00:05]} Rd8 {[%emt 0:00:23]} 27. Rd1 {[%emt 0:00:24]} Rd7 {[%emt 0:04:40]} 28. Ne4 {[%emt 0:03:09]} Bxe4 $1 {[%emt 0:00:08]} 29. Qxe4 {[%emt 0:00:02]} Qb7 {[%emt 0:00:07]} 30. Qe2 {[%emt 0:08:36]} Qd5 {[%emt 0:01:30]} 31. h3 {[%emt 0:02:45]} Rc7 {[%emt 0:00:57]} 32. Kb1 {[%emt 0:02:07]} (32. Qf3 $17 {is a better defense.}) 32... c3 {[%emt 0:04:54]} 33. Rc1 {[%emt 0:00:47]} (33. bxc3 $17 {is a better defense.} Rxc3 34. Qd2) 33... Qxd4 {[%emt 0:00:24]} 34. bxc3 {[%emt 0:10:40]} Rxc3 {[%emt 0:04:04]} ({Weaker is} 34... Qxf4 35. Rf1 $17) 35. Rxc3+ {[%emt 0:00:13]} Qxc3 {[%emt 0:00:02]} 36. Qe4 {[%emt 0:00:03]} Kb8 {[%emt 0:00:54]} 37. g4 {[%emt 0:00:52]} hxg4 {[%emt 0:03:02]} ({Don't do} 37... Qxh3 38. gxh5 gxh5 39. Qc6 $19) 38. hxg4 {[%emt 0:00:43]} b4 {[%emt 0:00:31]} 39. f5 {[%emt 0:01:12]} gxf5 {[%emt 0:01:58]} 40. gxf5 {[%emt 0:00:27]} b3 {[%emt 0:00:19]} 41. axb3 {[%emt 0:01:08]} Qxb3+ {[%emt 0:00:02]} 42. Kc1 {[%emt 0:01:00]} Qc3+ {[%emt 0:01:00]} 43. Kd1 {[%emt 0:01:12]} a5 {[%emt 0:01:16]} 44. Qa4 {[%emt 0:03:11] [#]} Kc7 $1 {[%emt 0:01:12]} ({Not} 44... exf5 45. Qe8+ Kc7 46. Qxf7+ {[%mdl 64] Double Attack} Kb6 47. Qxf5 $11) 45. Qb5 {[%emt 0:11:49]} exf5 {[%emt 0:00:28]} (45... Qb4 $142 46. Qe8 Qb3+ 47. Ke1 exf5 48. Qe7+ Kc6 49. Qd6+ Kb5 50. Qd7+ Kb4 51. Qd6+ Ka4) 46. Qd5 {[%emt 0:00:27]} Qc6 {[%emt 0:01:54]} (46... Qa1+ $19 {and Black stays clearly on top.} 47. Kc2 Qa4+ 48. Kb2 Kb6) 47. Qxa5+ {[%emt 0:01:08]} Kd7 {[%emt 0:00:01]} (47... Kc8 48. Ke2) 48. Ke2 {[%emt 0:04:40]} (48. Qd2+ $17 Kc7) 48... Ke6 {[%emt 0:00:02]} 49. Kf2 {[%emt 0:00:43]} Qc2+ {[%emt 0:00:21]} 50. Kg3 $2 {[%emt 0:00:31] [#]} (50. Ke1) 50... Qd3+ $2 {[%emt 0:00:43]} (50... f4+ $1 {[%mdl 512]} 51. Kh3 (51. Kxf4 Qf5+) 51... Qe2) 51. Kf2 {[%emt 0:00:47]} Qd4+ {[%emt 0:00:09]} 52. Kf1 {[%emt 0:01:18]} Qf4+ {[%emt 0:00:19]} 53. Kg1 {[%emt 0:00:24]} Qxe5 {[%emt 0:01:00]} 54. Qd8 $2 {[%emt 0:00:54]} (54. Qa6+ Qd6 55. Qc8+ Ke5 56. Qh8+ Kd5 57. Kg2) 54... Qa1+ {[%emt 0:01:52]} 55. Kg2 {[%emt 0:00:45]} Qb2+ {[%emt 0:00:18]} 56. Kg1 {[%emt 0:00:25]} Qc1+ {[%emt 0:00:35]} 57. Kf2 {[%emt 0:00:52]} Qc5+ {[%emt 0:00:03]} 58. Kf1 {[%emt 0:00:53]} Qc4+ {[%emt 0:00:30]} 59. Kf2 {[%emt 0:00:21]} Qc5+ {[%emt 0:01:11]} 60. Kf1 {[%emt 0:00:18]} Qc4+ $2 {[%emt 0:01:21]} (60... f4 $19 61. Qe8+ Qe7) 61. Kf2 {[%emt 0:00:32]} f4 {[%emt 0:00:00]} 62. Kf3 {[%emt 0:01:46]} Qf1+ $2 {[%emt 0:00:00]} (62... Qc3+ $19 {has better winning chances.} 63. Kg2 Qg3+ 64. Kf1 Qh3+ 65. Kf2 Qe3+ 66. Kf1 Qh3+ 67. Kf2 Qg3+ 68. Kf1 Qf3+ 69. Ke1 Qe3+ 70. Kf1 Qf3+ 71. Ke1 Qb3) 63. Kg4 {[%emt 0:00:59]} f5+ {[%emt 0:00:45]} 64. Kg5 {[%emt 0:00:20]} Qg2+ {[%emt 0:00:34]} 65. Kxf4 {[%emt 0:00:27]} Qf2+ {[%emt 0:00:02]} 66. Kg5 {[%emt 0:01:02] [#]} Qg3+ $1 {[%emt 0:00:02]} 67. Kh5 $1 {[%emt 0:01:03]} f4 {[%emt 0:00:11]} 68. Qc8+ $2 {[%emt 0:04:35] [#]} (68. Qa5 $11 {and White is okay.}) 68... Ke5 $2 {[%emt 0:00:21]} (68... Kd5 $1 $19 {[%cal Rd5e4]} 69. Qc2 f3 70. Qd3+ Ke5 71. Qe3+ Kf5 72. Qd3+ Kf6 73. Qd8+ Ke6) 69. Qc5+ $2 {[%emt 0:00:18]} (69. Qc4 $11) 69... Ke4 {[%emt 0:00:09]} 70. Qc6+ {[%emt 0:01:08]} Ke3 {[%emt 0:00:01]} 71. Qc1+ {[%emt 0:01:20] [#]} Kf2 $1 {[%emt 0:00:33]} 72. Qd2+ {[%emt 0:00:52]} Kg1 {[%emt 0:00:33]} 73. Qc1+ {[%emt 0:00:24]} Kg2 {[%emt 0:00:33]} 74. Qc2+ {[%emt 0:03:37]} Kh3 {[%emt 0:00:31]} 75. Qc8+ {[%emt 0:03:15]} Kh2 {[%emt 0:00:02]} 76. Qc7 {[%emt 0:00:22]} f3 {[%emt 0:00:25]} 77. Qc2+ {[%emt 0:01:58]} f2 {[%emt 0:00:04]} 78. Qd2 {[%emt 0:00:47]} Qg2 {[%emt 0:00:57]} 79. Qf4+ {[%emt 0:01:10]} Kh1 {[%emt 0:00:01]} 0-1

[Event "3rd HoliCup Lake City 2019"]
[Site "Udaipur"]
[Date "2019.03.31"]
[Round "8.1"]
[White "Matta, Vinay Kumar"]
[Black "Manigandan, S S"]
[Result "1/2-1/2"]
[ECO "C18"]
[WhiteElo "2146"]
[BlackElo "2157"]
[Annotator "NA"]
[PlyCount "33"]
[EventDate "2019.??.??"]
[EventCountry "IND"]
[SourceTitle "playchess.com"]
[Source "ChessBase"]
[SourceQuality "1"]
[TimeControl "5400+30"]

1. e4 {[%emt 0:05:03]} e6 {[%emt 0:00:00]} 2. d4 {[%emt 0:00:42]} d5 {[%emt 0:00:00]} 3. Nc3 Bb4 {[%emt 0:00:00]} 4. e5 {[%emt 0:00:12]} c5 {[%emt 0:00:00]} 5. a3 {[%emt 0:00:05]} Bxc3+ {[%emt 0:00:00]} 6. bxc3 {[%emt 0:00:03]} Ne7 {[%emt 0:00:03]} 7. Qg4 {[%emt 0:00:16]} cxd4 {[%emt 0:00:41]} 8. Bd3 {[%emt 0:01:18]} Qa5 {[%emt 0:08:36]} 9. Ne2 {[%emt 0:00:30]} Nd7 $14 {[%emt 0:12:09]} (9... O-O $11) 10. O-O {[%emt 0:01:48]} dxc3 {[%emt 0:08:40]} 11. Qxg7 {[%emt 0:01:10]} Rg8 {[%emt 0:00:05]} 12. Qxh7 {[%emt 0:00:08]} Nxe5 {[%emt 0:00:16]} 13. Bf4 {[%emt 0:01:24]} d4 {[%emt 0:06:08]} 14. Nxd4 {[%emt 0:04:22]} Qd5 {[%emt 0:02:05]} 15. Qe4 {[%emt 0:02:29]} Nxd3 {[%emt 0:00:55]} 16. cxd3 {[%emt 0:00:11]} Bd7 {[%emt 0:04:28]} 17. Rac1 1/2-1/2

[Event "3rd HoliCup Lake City 2019"]
[Site "Udaipur"]
[Date "2019.03.31"]
[Round "8.3"]
[White "Palit, Somak"]
[Black "Ayush, Jha"]
[Result "1-0"]
[ECO "A08"]
[WhiteElo "2330"]
[BlackElo "1861"]
[Annotator "NA"]
[PlyCount "46"]
[EventDate "2019.??.??"]
[EventCountry "IND"]
[SourceTitle "playchess.com"]
[Source "ChessBase"]
[SourceQuality "1"]
[TimeControl "5400+30"]

1. e4 {[%emt 0:00:00]} c5 {[%emt 0:00:00]} 2. Nf3 {[%emt 0:01:13]} e6 {[%emt 0:00:00]} 3. d3 {[%emt 0:03:48]} Nc6 {[%emt 0:00:09]} 4. g3 {[%emt 0:00:34]} Nf6 {[%emt 0:01:10]} 5. Bg2 {[%emt 0:00:20]} d5 {[%emt 0:00:39]} 6. Nbd2 {[%emt 0:00:39]} Be7 {[%emt 0:00:38]} 7. O-O {[%emt 0:00:57]} O-O {[%emt 0:00:08]} 8. Re1 {[%emt 0:01:42]} b6 {[%emt 0:06:10]} 9. e5 {[%emt 0:03:26]} Ne8 {[%emt 0:03:06]} 10. Nf1 {[%emt 0:01:14]} Bb7 {[%emt 0:00:54]} 11. c3 {[%emt 0:03:30] C00: French: Unusual White 2nd moves} Nc7 {[%emt 0:03:13]} 12. h4 {[%emt 0:02:03]} b5 $146 {[%emt 0:04:00]} ({Predecessor:} 12... f6 13. exf6 Bxf6 14. d4 cxd4 15. cxd4 Nb5 {½-½ (27) Netzer,J (2402)-Kazakov,M (2517) Saint-Quentin 2014}) 13. N1h2 {[%emt 0:07:22]} b4 {[%emt 0:06:48]} 14. Ng5 {[%emt 0:07:55]} h6 {[%emt 0:07:55]} 15. Nh3 {[%emt 0:06:34]} Re8 {[%emt 0:02:31]} 16. Qg4 {[%emt 0:07:34]} Kh7 {[%emt 0:03:42]} 17. Qh5 {[%emt 0:02:27]} Kg8 {[%emt 0:02:19]} 18. Ng4 {[%emt 0:05:40]} bxc3 {[%emt 0:02:53]} 19. bxc3 {[%emt 0:01:56]} Nb5 {[%emt 0:01:21]} 20. Nxh6+ {[%emt 0:09:01]} gxh6 {[%emt 0:00:13]} 21. Bxh6 {[%emt 0:00:21]} Bf8 {[%emt 0:02:14]} 22. Ng5 $18 {[%emt 0:02:12]} Qc7 {[%emt 0:01:38]} 23. Nh7 {[%emt 0:02:13]} Bc8 1-0

[Event "3rd HoliCup Lake City 2019"]
[Site "Udaipur"]
[Date "2019.03.31"]
[Round "8.4"]
[White "Lokesh, N.."]
[Black "Chudasama, Ankit"]
[Result "1-0"]
[ECO "B23"]
[WhiteElo "2157"]
[BlackElo "1853"]
[Annotator "NA"]
[PlyCount "41"]
[EventDate "2019.??.??"]
[EventCountry "IND"]
[SourceTitle "playchess.com"]
[Source "ChessBase"]
[SourceQuality "1"]
[TimeControl "5400+30"]

1. e4 {[%emt 0:00:00]} c5 {[%emt 0:00:00]} 2. Nc3 {[%emt 0:00:03]} d6 {[%emt 0:00:00]} 3. f4 {[%emt 0:00:20]} g6 {[%emt 0:00:48]} 4. Bc4 {[%emt 0:00:06]} Bg7 {[%emt 0:00:12]} 5. Nf3 {[%emt 0:00:08]} Nc6 {[%emt 0:00:16]} 6. O-O {[%emt 0:00:19]} e6 {[%emt 0:00:28]} 7. d3 {[%emt 0:00:57]} Nge7 {[%emt 0:01:41]} 8. Qe1 {[%emt 0:00:13]} O-O {[%emt 0:01:14]} 9. f5 {[%emt 0:00:52]} d5 {[%emt 0:05:18]} 10. Bb3 {[%emt 0:00:05]} gxf5 $14 {[%emt 0:11:12]} ({Black should try} 10... dxe4 $15 11. dxe4 exf5) 11. exd5 {[%emt 0:02:50]} Nxd5 {[%emt 0:04:17]} 12. Bxd5 {[%emt 0:08:04]} exd5 {[%emt 0:01:40]} 13. Qg3 {[%emt 0:00:57]} Be6 {[%emt 0:06:44]} 14. Bh6 {[%emt 0:08:00]} Qf6 {[%emt 0:00:50]} 15. Bg5 {[%emt 0:00:10]} Qg6 {[%emt 0:01:27]} 16. Nh4 {[%emt 0:00:19]} Qh5 {[%emt 0:02:15]} 17. Nxf5 {[%emt 0:02:34]} Bxf5 {[%emt 0:01:36]} 18. Rxf5 {[%emt 0:00:40]} h6 {[%emt 0:05:12]} 19. Nxd5 {[%emt 0:07:52]} hxg5 {[%emt 0:06:53]} 20. Rxg5 {[%emt 0:00:27]} Qh6 {[%emt 0:00:18]} 21. Rxg7+ {[%emt 0:00:18] Qh5} 1-0

[Event "3rd HoliCup Lake City 2019"]
[Site "Udaipur"]
[Date "2019.03.31"]
[Round "8.5"]
[White "Awadh, Chaitanya"]
[Black "Chandan, Mandal"]
[Result "1/2-1/2"]
[ECO "C12"]
[WhiteElo "1882"]
[BlackElo "1799"]
[Annotator "NA"]
[PlyCount "50"]
[EventDate "2019.??.??"]
[EventCountry "IND"]
[SourceTitle "playchess.com"]
[Source "ChessBase"]
[SourceQuality "1"]
[TimeControl "5400+30"]

1. e4 {[%emt 0:00:00]} e6 {[%emt 0:00:00]} 2. d4 {[%emt 0:00:03]} d5 {[%emt 0:00:00]} 3. Nc3 {[%emt 0:00:11]} Nf6 {[%emt 0:00:10]} 4. Bg5 {[%emt 0:04:48]} Bb4 {[%emt 0:00:16]} 5. e5 {[%emt 0:02:10]} h6 {[%emt 0:00:31]} 6. Bd2 {[%emt 0:01:01]} Bxc3 {[%emt 0:00:15]} 7. bxc3 {[%emt 0:00:08]} Ne4 {[%emt 0:00:22]} 8. Bd3 {[%emt 0:00:57]} Nxd2 {[%emt 0:00:47]} 9. Qxd2 {[%emt 0:00:20]} c5 {[%emt 0:00:45]} 10. f4 {[%emt 0:04:45]} Nc6 $11 {[%emt 0:02:13]} 11. Nf3 {[%emt 0:01:29]} Qa5 {[%emt 0:01:37]} 12. a4 {[%emt 0:05:40]} cxd4 {[%emt 0:08:53]} 13. cxd4 {[%emt 0:01:22]} Bd7 {[%emt 0:00:45]} 14. c3 {[%emt 0:02:55]} Rc8 {[%emt 0:04:10]} 15. O-O {[%emt 0:05:09]} Qc7 {[%emt 0:07:02]} 16. Ra3 {[%emt 0:15:06]} Na5 {[%emt 0:00:57]} 17. Qe2 {[%emt 0:01:46]} Nc4 {[%emt 0:01:35]} 18. Raa1 {[%emt 0:03:09]} Qa5 {[%emt 0:01:08]} 19. Rab1 {[%emt 0:09:18]} Nb6 {[%emt 0:09:16]} 20. f5 {[%emt 0:01:26]} Qxc3 {[%emt 0:08:16]} 21. Bb5 {[%emt 0:06:25]} Bxb5 {[%emt 0:05:47]} 22. Qxb5+ {[%emt 0:01:21]} Qc6 {[%emt 0:03:12]} 23. fxe6 {[%emt 0:00:34]} fxe6 {[%emt 0:00:25]} 24. a5 {[%emt 0:01:26]} Nc4 {[%emt 0:14:37]} 25. Qxb7 {[%emt 0:01:17]} O-O {[%emt 0:01:22]} 1/2-1/2